Cogmind - Beta 13 @@@ ROGUE MODE // 2024.04.06 @ 21:21:56 Player: Spuddz Result: Self-destructed Performance ------------- Evolutions (3) 1500 Regions Visited (6) 1200 Robots Destroyed (46) 230 Value Destroyed (1302) 1302 Prototype IDs (1) 20 Alien Tech Used (0) 0 Bonus (-23) -23 TOTAL SCORE: 4229 Bonus ------- Follower Combat Kills 35 Friendly Fire -58 Cogmind --------- Core Integrity 397/700 Matter 189/300 Energy 100/100 System Corruption 15% Temperature Cool (0) Movement Flying (37) Location -7/Storage Parts ------- > --- POWER (1) -------- (None) > --- PROPULSION (5) --- Improved Flight Unit Improved Flight Unit > --- UTILITY (5) ------ Hacking Suite > --- WEAPON (2) ------- (None) > --- INVENTORY (5) ---- Light Nuclear Core Structural Scanner Hardened Light Armor Plating Hacking Suite Peak State ------------ > --- POWER ------------ Light Nuclear Core > --- PROPULSION ------- Flight Unit VTOL Module Improved Flight Unit Improved Flight Unit > --- UTILITY ---------- Hacking Suite Hacking Suite Hacking Suite Hacking Suite System Shield > --- WEAPON ----------- Scythe Scythe > --- INVENTORY -------- Light Nuclear Core Structural Scanner Hardened Light Armor Plating Hacking Suite [Rating: 33] Favorites ----------- Power Ion Engine Engine Ion Engine Power Core Light Nuclear Core Propulsion Light Treads Treads Light Treads Leg Aluminum Leg Flight Unit Improved Flight Unit Utility Huge Storage Unit Device Structural Scanner Storage Huge Storage Unit Hackware Hacking Suite Protection Hardened Light Armor Plating Weapon Light Assault Rifle Ballistic Gun Light Assault Rifle Launcher Grenade Launcher Slashing Weapon Scythe Build | -11 -10 -10 -9 -8 -7 -7 ------- Run | Yrd Mat Min Mat Mat Fac Sto Slots Evolved 6 | . . . 2 2 2 . Power . | . . . . . . . Propulsion 3 | . . . 2 . 1 . Utility 3 | . . . . 2 1 . Weapon . | . . . . . . . Parts Attached 47 | . 12 1 11 12 11 . Power 6 | . 1 . 2 1 2 . Engine 3 | . 1 . 2 . . . Core 3 | . . . . 1 2 . Reactor . | . . . . . . . Propulsion 16 | . 3 1 5 4 3 . Treads 8 | . 3 1 4 . . . Leg . | . . . . . . . Wheel . | . . . . . . . Hover . | . . . . . . . Flight 8 | . . . 1 4 3 . Utility 10 | . 2 . . 4 4 . Device 2 | . 1 . . . 1 . Storage 1 | . 1 . . . . . Processor . | . . . . . . . Hackware 5 | . . . . 3 2 . Protection 2 | . . . . 1 1 . Artifact . | . . . . . . . Weapon 15 | . 6 . 4 3 2 . Energy Gun . | . . . . . . . Energy Cannon . | . . . . . . . Ballistic Gun 7 | . 4 . 3 . . . Ballistic Cannon . | . . . . . . . Launcher 4 | . 2 . . 1 1 . Special Weapon . | . . . . . . . Impact Weapon . | . . . . . . . Slashing Weapon 4 | . . . 1 2 1 . Piercing Weapon . | . . . . . . . Special Melee Weapon . | . . . . . . . Unidentified Prototypes 1 | . . . 1 . . . Parts Lost 23 | . 1 1 5 4 7 5 Power 5 | . 1 . 2 1 . 1 Propulsion 10 | . . 1 3 2 3 1 Utility 4 | . . . . . 3 1 Weapon 4 | . . . . 1 1 2 Highest Loss Streak 5 | . 1 1 2 2 3 5 To Critical Strikes . | . . . . . . . Average Slot Usage (%) 88 | . 89 100 89 72 88 65 Engine 10 | . 14 14 8 6 . . Treads 26 | . 27 28 36 14 . . Flight 3 | . . . . 7 29 20 Device 6 | . 4 14 11 9 1 . Storage 11 | . 14 14 11 8 . . Hackware 3 | . . . . 3 33 15 Ballistic Gun 20 | . 27 14 20 9 . . Launcher 1 | . . 14 1 5 . . Slashing Weapon 1 | . . . . 2 14 15 Naked Turns . | . . . . . . . Heaviest Build 99 | 12 90 90 90 99 14 14 Greatest Support 83 | 20 40 40 83 63 22 14 Greatest Overweight (x) 4 | . 4 2 2 4 . 1 Average Overweight (x) 1 | . 1 2 1 . . . Largest Inventory Capacity 25 | . 25 25 25 25 5 5 Average Capacity 22 | . 24 25 25 22 5 5 Most Carried 23 | . 15 13 23 22 5 4 Average Carried 12 | . 11 12 17 18 3 3 Final Capacity 25 | 8 25 25 25 5 5 5 Final Carried 23 | 6 13 13 23 4 3 4 Class Distribution -------------------- 87% | Mutant 11% | Hacker-Sprinter Dominant Class ---------------- Mutant | -10/Materials Mutant | -10/Mines Mutant | -9/Materials Mutant | -8/Materials Hacker-Sprinter | -7/Factory Hacker-Sprinter | -7/Storage Resources | -11 -10 -10 -9 -8 -7 -7 ----------- Run | Yrd Mat Min Mat Mat Fac Sto Matter Collected 1113 | 200 260 28 409 . 195 21 Remotely . | . . . . . . . Salvage Created 1433 | . 439 7 570 215 181 21 Parts 80 | . 30 . 32 9 8 1 Haulers Intercepted 2 | . 1 . 1 . . . Recyclers Shooed 2 | . . . 1 1 . . Parts Field Recycled . | . . . . . . . Retrieved Matter . | . . . . . . . Parts Self-Destructed . | . . . . . . . Prevented . | . . . . . . . Kills | -11 -10 -10 -9 -8 -7 -7 ------- Run | Yrd Mat Min Mat Mat Fac Sto Combat Hostiles Destroyed 38 | . 10 4 16 4 4 . Melee 4 | . . . . . 4 . Guns 19 | . 7 . 11 1 . . AOE 15 | . 3 4 5 3 . . Classes Destroyed 11 | . 7 1 1 2 . . Worker 2 | . 2 . . . . . Builder 2 | . 1 . . 1 . . Hauler 2 | . 1 . 1 . . . Recycler 1 | . . . . 1 . . Operator 4 | . 2 . . . 1 1 Watcher 1 | . 1 . . . . . Swarmer 8 | . 3 . 4 . 1 . Grunt 23 | . 7 . 10 3 3 . Sentry 2 | . . . 2 . . . Hunter 1 | . . . . 1 . . Assembled 4 | . . 4 . . . . Best Kill Streak 6 | . 6 2 5 4 3 1 Combat Bots Only 4 | . 3 2 4 3 3 . Max Kills in Single Turn 3 | . 3 2 3 2 1 1 Gunslinging . | . . . . . . . Exploded 2 | . 1 2 2 1 . . Melee 1 | . . . . . 1 . Uniques/NPCs Destroyed . | . . . . . . . Combat | -11 -10 -10 -9 -8 -7 -7 -------- Run | Yrd Mat Min Mat Mat Fac Sto Hostile Shots Fired 338 | . 67 14 101 46 56 54 Missed 120 | . 21 5 20 16 31 27 Damage Taken 3058 | . 520 223 1026 381 575 333 Core 785 | . 64 49 219 150 187 116 Absorbed by Shields . | . . . . . . . Regen/Repaired (Parts) 16 | . . . . . 16 . Core Remaining (%) 67 | 100 . 54 45 72 . . Volleys Fired 152 | . 56 9 80 6 1 . Largest 2 | . 2 2 2 2 1 . Hottest 53 | . 50 50 50 53 33 . Shots Fired 302 | . 111 18 160 12 1 . Gun 278 | . 107 9 156 6 . . Cannon . | . . . . . . . Launcher 24 | . 4 9 4 6 1 . Special . | . . . . . . . Kinetic 278 | . 107 9 156 6 . . Thermal . | . . . . . . . Explosive 24 | . 4 9 4 6 1 . Electromagnetic . | . . . . . . . Robot Hit Streak 13 | . 9 3 13 2 3 . Robot Miss Streak 4 | . 4 3 3 3 . . Penetration Max . | . . . . . . . Secondary Targets . | . . . . . . . Shots Hit Robots 203 | . 66 9 106 6 14 2 Core Hits 96 | . 32 8 42 9 5 . Critical Kills . | . . . . . . . Critical Parts Destroyed 1 | . . . 1 . . . Critical Strikes 1 | . . . 1 . . . Destroy 1 | . . . 1 . . . Melee Attacks 62 | . . . 6 5 37 14 Impact . | . . . . . . . Slashing 62 | . . . 6 5 37 14 Piercing . | . . . . . . . Sneak Attacks 1 | . . . 1 . . . Combat Hostiles . | . . . . . . . Follow-up Attacks 4 | . . . . . 3 1 Damage Inflicted 3804 | . 976 220 1398 581 544 85 Guns 1565 | . 708 22 831 4 . . Cannons . | . . . . . . . Explosions 1594 | . 268 198 451 547 130 . Melee 631 | . . . 102 30 414 85 Ramming 14 | . . . 14 . . . Kinetic 1565 | . 708 22 831 4 . . Thermal . | . . . . . . . Explosive 1594 | . 268 198 451 547 130 . Electromagnetic . | . . . . . . . Impact . | . . . . . . . Slashing 631 | . . . 102 30 414 85 Piercing . | . . . . . . . Highest Corruption 6 | . . . 3 . 6 6 Average Corruption 3 | . . . 3 . 6 6 Corruption Purged . | . . . . . . . Corruption Blocked . | . . . . . . . Effects 12 | . . . 9 . 1 2 Message Errors 2 | . . . 1 . . 1 Matter Fused 4 | . . . 3 . 1 . Heat Flow Errors 2 | . . . 2 . . . Energy Discharges 3 | . . . 2 . . 1 Data Loss (minor) 1 | . . . 1 . . . Overload Shots . | . . . . . . . Overflow Damage 148 | . 33 3 5 12 60 35 Projectiles . | . . . . . . . Explosions 106 | . 33 3 5 12 53 . Melee 42 | . . . . . 7 35 Knockbacks . | . . . . . . . Impact . | . . . . . . . Kinetic . | . . . . . . . Secondary . | . . . . . . . Self-Inflicted Damage 123 | . . 31 14 29 49 . Shots 8 | . . 4 1 2 1 . Rammed 1 | . . . 1 . . . Targets Rammed 1 | . . . 1 . . . Kicked . | . . . . . . . Crushed . | . . . . . . . Highest Temperature 249 | . 18 40 249 10 2 . Average Temperature 21 | . 8 11 32 6 2 . Received Heat Transfer 970 | . 249 40 465 54 84 78 Siege Activations . | . . . . . . . Robots Corrupted . | . . . . . . . Combat Hostiles . | . . . . . . . Parts Fried . | . . . . . . . Impact Corruptions . | . . . . . . . Robots Melted . | . . . . . . . Combat Hostiles . | . . . . . . . Parts Melted . | . . . . . . . Heat Transferred . | . . . . . . . Parts Sabotaged . | . . . . . . . Parts Stolen . | . . . . . . . Parts Stripped . | . . . . . . . Power Chain Reactions . | . . . . . . . Alert | -11 -10 -10 -9 -8 -7 -7 ------- Run | Yrd Mat Min Mat Mat Fac Sto Peak Influence 353 | . 135 26 253 252 353 160 Initial 114 | . . 15 5 20 114 78 Average 86 | . 42 16 122 110 217 119 Maximum Alert Level 1 | . . . 1 1 1 . Low Security (%) 92 | . 100 100 88 89 64 100 Level 1 7 | . . . 11 10 35 . Level 2 . | . . . . . . . Level 3 . | . . . . . . . Level 4 . | . . . . . . . Level 5 . | . . . . . . . High Security . | . . . . . . . Max Security . | . . . . . . . Squads Dispatched 12 | . 3 . 2 3 3 1 Investigation 4 | . 1 . . 1 2 . Extermination . | . . . . . . . Reinforcement 8 | . 2 . 2 2 1 1 Assault . | . . . . . . . Garrison . | . . . . . . . Intercept . | . . . . . . . Searches Triggered . | . . . . . . . Construction Impeded 2 | . . . 1 1 . . Haulers Reinforced . | . . . . . . . Active Scanning Responses . | . . . . . . . Cargo Convoy Interrupts . | . . . . . . . Stealth | -11 -10 -10 -9 -8 -7 -7 --------- Run | Yrd Mat Min Mat Mat Fac Sto Distress Signals 7 | . 3 . 3 . 1 . Communications Jammed . | . . . . . . . Distress Signals . | . . . . . . . Times Spotted 99 | . 23 8 26 9 19 14 Peak Tracking Total 12 | . 6 4 3 6 6 12 Tactical Retreats 10 | . 1 . 4 1 3 1 Traps | -11 -10 -10 -9 -8 -7 -7 ------- Run | Yrd Mat Min Mat Mat Fac Sto Traps Triggered 2 | . 2 . . . . . Indirectly . | . . . . . . . Trap Hack Attempts . | . . . . . . . Triggered . | . . . . . . . Disarmed . | . . . . . . . Reprogrammed . | . . . . . . . Reused . | . . . . . . . Traps Extracted . | . . . . . . . Installed . | . . . . . . . Triggered . | . . . . . . . Machines | -11 -10 -10 -9 -8 -7 -7 ---------- Run | Yrd Mat Min Mat Mat Fac Sto Machines Disabled 4 | . . . . 3 . 1 Max in Single Turn 1 | . . . . 1 . 1 Garrison Access 1 | . . . . . 1 . Machines Repaired . | . . . . . . . Machines Dismantled . | . . . . . . . Machines Sabotaged . | . . . . . . . Overloaded Fab Kills . | . . . . . . . Hacking | -11 -10 -10 -9 -8 -7 -7 --------- Run | Yrd Mat Min Mat Mat Fac Sto Machines Accessed 9 | . . . 1 2 5 1 Terminals 7 | . . . 1 2 3 1 Fabricators . | . . . . . . . Repair Stations 1 | . . . . . 1 . Recycling Units . | . . . . . . . Scanalyzers . | . . . . . . . Garrison Access 1 | . . . . . 1 . Total Hacks 26 | . . . 4 4 14 4 Successful 13 | . . . . 3 9 1 Failed 13 | . . . 4 1 5 3 Catastrophic 1 | . . . 1 . . . Database Lockouts . | . . . . . . . Manual 15 | . . . 4 4 7 . Terminals 23 | . . . 4 4 11 4 Fabricators . | . . . . . . . Repair Stations 2 | . . . . . 2 . Recycling Units . | . . . . . . . Scanalyzers . | . . . . . . . Garrison Access 1 | . . . . . 1 . Terminal Hacks 10 | . . . . 3 6 1 Record 1 | . . . . . 1 . Open Door 1 | . . . . . . 1 Level Access Points 3 | . . . . 1 2 . Branch Access Points 1 | . . . . 1 . . Alert Level 1 | . . . . . 1 . Hauler Manifests 2 | . . . . 1 1 . Zone Layout 1 | . . . . . 1 . Fabricator Hacks . | . . . . . . . Repair Station Hacks 2 | . . . . . 2 . Scan Component 1 | . . . . . 1 . Repair 1 | . . . . . 1 . Recycling Unit Hacks . | . . . . . . . Scanalyzer . | . . . . . . . Garrison Access Hacks 1 | . . . . . 1 . Seal Access 1 | . . . . . 1 . Unauthorized Hacks . | . . . . . . . Terminals . | . . . . . . . Fabricators . | . . . . . . . Repair Stations . | . . . . . . . Recycling Units . | . . . . . . . Scanalyzers . | . . . . . . . Garrison Access . | . . . . . . . Data Cores Recovered 1 | . . . . . 1 . Used . | . . . . . . . Hacking Detections 7 | . . . 1 1 4 1 Full Trace Events 4 | . . . 1 1 2 . Feedback Events . | . . . . . . . Feedback Blocked . | . . . . . . . Robot Schematics Acquired . | . . . . . . . Robots Built . | . . . . . . . Authchips . | . . . . . . . Time . | . . . . . . . Total Robot Build Rating . | . . . . . . . Part Schematics Acquired . | . . . . . . . Parts Built . | . . . . . . . Authchips . | . . . . . . . Time . | . . . . . . . Total Part Build Rating . | . . . . . . . Parts Repaired 1 | . . . . . 1 . Time 26 | . . . . . 26 . Parts Recycled . | . . . . . . . Recycled Matter . | . . . . . . . Retrieved Matter . | . . . . . . . Retrieved Components . | . . . . . . . Parts Scanalyzed . | . . . . . . . Part Schematics Acquired . | . . . . . . . Parts Damaged . | . . . . . . . Bothacking | -11 -10 -10 -9 -8 -7 -7 ------------ Run | Yrd Mat Min Mat Mat Fac Sto Used RIF Installer . | . . . . . . . Robots Hacked . | . . . . . . . Non-combat . | . . . . . . . Combat . | . . . . . . . Robot Hacks Applied . | . . . . . . . Relay Couplers Released . | . . . . . . . Fabnet Peak Effective % . | . . . . . . . Robots Rewired . | . . . . . . . Allies Hacked . | . . . . . . . Hacks Repelled . | . . . . . . . Allies | -11 -10 -10 -9 -8 -7 -7 -------- Run | Yrd Mat Min Mat Mat Fac Sto Total Allies 1 | . . 1 . . . . Largest Group 1 | . . 1 1 . . . Highest-Rated Group 31 | . . 31 31 . . . Highest-Rated Ally 31 | . . 31 31 . . . Total Orders . | . . . . . . . Ally Attacks 14 | . . 3 11 . . . Total Damage 190 | . . 20 170 . . . Kills 1 | . . . 1 . . . Allies Corrupted . | . . . . . . . Allies Melted 1 | . . . 1 . . . Intel | -11 -10 -10 -9 -8 -7 -7 ------- Run | Yrd Mat Min Mat Mat Fac Sto Robot Analysis Total . | . . . . . . . Derelict Logs Recovered . | . . . . . . . Drone Launches . | . . . . . . . Drone Recoveries . | . . . . . . . Exploration | -11 -10 -10 -9 -8 -7 -7 ------------- Run | Yrd Mat Min Mat Mat Fac Sto Turns Passed 4536 | . 2273 199 1256 286 459 63 Spaces Moved 1851 | 1 640 54 394 139 532 91 Core . | . . . . . . . Treads 1143 | . 630 54 394 65 . . Legs 11 | 1 10 . . . . . Wheels . | . . . . . . . Hover . | . . . . . . . Flight 697 | . . . . 74 532 91 Fastest Speed 27 | 120 120 320 240 29 27 32 Average Speed 193 | 120 318 320 240 155 31 34 Slowest Speed 480 | 120 480 320 320 480 40 107 Overloaded Moves . | . . . . . . . Propulsion Burnouts . | . . . . . . . Robots Hopped . | . . . . . . . Cave-ins Triggered 2 | . . . . . 1 1 Exploration Rate (%) 30 | 2 87 22 46 22 15 17 Regions Visited 6 Branch Regions 2 Pre-discovered Areas . | . . . . . . . Known Exits Taken 1 | . . . . 1 . . Unknown Exits Taken 5 | 1 1 1 1 . 1 . Scrap Searched . | . . . . . . . Spaces Dug 30 | . . . 4 3 15 8 Terrain Destroyed 141 | . 15 27 28 45 18 8 Melee 30 | . . . 4 3 15 8 Projectile . | . . . . . . . AOE 111 | . 15 27 24 42 3 . Terrain Rammed 1 | . . . 1 . . . Walls Destroyed . | . . . . . . . Machines Disabled . | . . . . . . . Actions | -11 -10 -10 -9 -8 -7 -7 --------- Run | Yrd Mat Min Mat Mat Fac Sto Total 2478 | . 774 66 562 194 778 104 Wait 318 | . 44 2 51 23 198 . Move 1845 | . 639 53 393 138 531 91 Hop . | . . . . . . . Pick Up 41 | . 16 1 16 . 8 . Fast Attach 2 | . 1 . 1 . . . Attach 34 | . 7 1 8 10 8 . Detach 3 | . . . 2 . . 1 Swap 11 | . 4 . 2 2 3 . Drop 20 | . 7 . 1 11 1 . Fire 152 | . 56 9 80 6 1 . Melee 50 | . . . 6 4 28 12 Ram 1 | . . . 1 . . . Kick . | . . . . . . . Crush 1 | . . . 1 . . . Escape Stasis . | . . . . . . . Rewire . | . . . . . . . Trap . | . . . . . . . Miscellaneous . | . . . . . . . Route ------- -11/Scrapyard -10/Materials (discovered 4 exits: *Mat x3 / [*Min]) -10/Mines -9/Materials -8/Materials (discovered 3 exits: *Fac x3) -7/Factory (discovered 5 exits: Fac x4 / *Sto) -7/Storage History --------- Turn | Location | Event 1 | -11/Scrapyard | Discovered new exit (range 0) 1 | -11/Scrapyard | Entered Materials 310 | -10/Materials | Build established: Mutant 970 | -10/Materials | Discovered new exit (range 10) 1507 | -10/Materials | Discovered new exit (range 16) 1799 | -10/Materials | Discovered new exit (range 15) 2017 | -10/Materials | Discovered new exit (range 3) 2274 | -10/Materials | Entered Mines 2288 | -10/Mines | Assembled infested the area 2345 | -10/Mines | Received a Rocket Launcher from a helpful Derelict 2428 | -10/Mines | Discovered new exit (range 11) 2457 | -10/Mines | Received a Mining Laser from a helpful Derelict 2473 | -10/Mines | Entered Materials 2473 | -9/Materials | Accompanied by 1 ally 2473 | -9/Materials | Evolved 2 slots: Propulsion x2 3607 | -9/Materials | Discovered new exit (range 14) 3656 | -9/Materials | Core integrity fell below 50% 3729 | -9/Materials | Entered another Materials area 3729 | -8/Materials | Evolved 2 slots: Utility x2 3985 | -8/Materials | Identified exit to Factory 4015 | -8/Materials | Entered Factory 4015 | -7/Factory | Evolved 2 slots: Propulsion x1, Utility x1 4107 | -7/Factory | Lost 3 parts (2n1w) 4140 | -7/Factory | Repaired Structural Scanner 4176 | -7/Factory | Identified exit to Factory 4366 | -7/Factory | Build established: Hacker-Sprinter 4457 | -7/Factory | Discovered new exit (range 15) 4463 | -7/Factory | Crushed by falling debris 4474 | -7/Factory | Entered Storage 4537 | -7/Storage | Crushed by falling debris 4537 | -7/Storage | System corruption reached 10% 4537 | -7/Storage | Self-destructed Last Messages --------------- 04508_ Destroyed Lgt. Deuterium Engine. 04508_ O-24 Administrator destroyed. 04510_ Acquired 21 matter. 04515_ VTOL Module destroyed. 04523_ K-01 Serf cleans the Compression Vault. 04527_ RJIDT ZNL FP=AW HYO38TU#PWB 04527_ K-01 Serf cleans the Compression Vault. 04532_ Lgt. Nuclear Core destroyed. 04535_ K-01 Serf collects debris. 04535_ C-30 ARC bursts open, deploying its payload. 04535_ G-47 Trooper unfolds itself. 04537_ The unstable cave ceiling collapses. 04537_ Crushed by falling debris. 04537_ Scythe destroyed. 04537_ System corrupted by crushing effect (+5). 04537_ Scythe destroyed. 04537_ System corrupted by crushing effect (+2). 04537_ Hacking Suite destroyed. 04537_ System corrupted by crushing effect (+2). Map ----- +----------------------------------------------------+ | ?????????????????????????????????????????????????? | | ?????????????????????????????????????????????????? | | ?????????????????????????????????????????????????? | | ?????????????????????????????????????????????????? | | ??????????? ???????????????????????????????????? | | ??????????# #??????????????????????????????????? | | ??????????# #??????????????????????????????????? | | ??????????# #??????????????????????????????????? | | ??????????# #??????????????????????????????????? | | ??????????# #??????????????????????????????????? | | ??????????# +??????????????????????????????????? | | ??????????# #??????????????????????????????????? | | ??????????# #??????????????????????????????????? | | ??????????# #??????????????????????????????????? | | ??????????# #??????????????????????????????????? | | ??????????# #????????????????#?????????????????? | | ########### ############# ?????????????????? | | = g g #????????????????? | | g #????????????????? | | % #????????????????? | | +###########+####"####Y####??????????????????????? | | ######[ ## Yg #??????????????????????? | | ]]]## """ ## g""" #??????????????????????? | | [[[## """ ## k""" ###????????????????????? | | #T###### """ [## """ # #????????????????????? | | ###????# ## p @##?????????????????????? | | ???????# """ ## """Y ##?????????????????????? | | ???????# """ ## """ #??????????????????????? | | ???????#???"" ## """ ##?????????????????????? | | ???????????? # "#?????????????????????? | | ???????????? ############;##?????????????????????? | | ?????????????????????????#???????????????????????? | | | | | | | | | | | | | | | | | | | | | | | | | | | | | | | | | | | | | +----------------------------------------------------+ Best States ------------- Heat Dissipation 34 Energy Generation 14 Energy Capacity 250 Matter Stores 300 Matter Capacity 300 Sight Range 16 Terrain Scan Density 10 Armor Coverage 225 Evasion (%) 64 Recoil Reduction 4 Offensive Hacking 40 Defensive Hacking 10 Item Schematics ----------------- None Robot Schematics ------------------ None Fabricated ------------ Nothing Alien Tech Used ----------------- None Achievements -------------- None Challenges ------------ None Game ------ Seed GravitySegregatorSheargun Manual? 0 Play Time 00:34:40 Cumulative 12.3 hours Start 2024.04.06 @ 20:48:00 End 2024.04.06 @ 21:21:56 Sessions 3 Manual Loads 0 Difficulty Rogue Special Mode None Game No. 35 Rogue 35 Adventurer 0 Explorer 0 Win Type - Total 0 Types 0/0/0/0/0/0/0/0/0 Lore% 14 Gallery% 17 Achievement% 19 Wizard Run 0 Options --------- Layout 1 ASCII 0 Keyboard 0 Movement Mouse Keybinds 0 Fullscreen 2 Font 32/Terminus Map View 50x35 Zoom Use 0% Tactical HUD 1 Map Filters NONE Filters NONE Steam 1 RUN: ab45db5a-eccb-4080-a67a-bfa9df66bdf7